bitfinex-derivatives/quotes_ETHF0:USTF0_20251223
["timestamp","ask_amount","ask_price","bid_price","bid_amount"]
[1766529203383,0.93315319,2958.7,2958.1,3.38]
[1766529203580,0.93315319,2958.5,2957.4,8.45]
[1766529203783,0.93315319,2958.5,2957.5,9.279]
[1766529209499,4.31315319,2958.6,2957.5,9.279]
[1766529210599,0.93315319,2958.4,2957.5,9.279]
[1766529211699,3.381,2958.3,2957.4,0.00330881]
[1766529211903,0.00506663,2958.1,2957.5,9.283]
[1766529212498,3.381,2958.3,2957.5,9.283]
[1766529213502,0.00506663,2958.2,2957.6,0.00506663]
[1766529219006,3.381,2958.4,2957.6,0.00506663]
[1766529219606,0.93315319,2958.3,2957.6,3.28767113]
[1766529219902,0.93315319,2958.3,2957.4,0.00330881]
[1766529220101,0.93315319,2958.1,2957.4,0.00330881]
[1766529220303,3.381,2958.0,2957.0,3.3826]
[1766529220606,0.00506663,2957.8,2957.2,0.00506663]
[1766529220806,3.381,2957.7,2957.2,0.00506663]
[1766529221205,3.38498532,2957.7,2957.2,0.00744145]
[1766529224107,0.93315319,2957.3,2955.8,3.381]
[1766529224406,4.31415319,2957.3,2955.9,6.01815319]
[1766529225112,0.93315319,2957.1,2955.9,6.02175235]
[1766529225801,0.93315319,2957.1,2955.9,0.00359916]
[1766529226003,0.93315319,2956.9,2956.0,9.284]
[1766529226607,0.93315319,2956.7,2956.1,9.284]
[1766529226801,0.93315319,2956.5,2955.9,0.00359916]
[1766529227008,0.93315319,2956.7,2955.9,3.38459916]
[1766529227704,3.382,2957.1,2955.9,4.31775235]
[1766529228112,0.93315319,2957.0,2955.9,3.38459916]
[1766529228811,0.93315319,2957.0,2956.0,8.088]
[1766529229011,0.93315319,2956.8,2956.0,8.088]
[1766529229213,0.93315319,2956.8,2955.9,0.00359916]
[1766529229411,0.93315319,2957.0,2955.9,0.00359916]
[1766529229706,0.93315319,2957.0,2956.0,0.192]
[1766529229914,0.93315319,2957.0,2956.0,3.574]
[1766529230112,0.93315319,2956.8,2956.1,3.382]
[1766529230614,3.382,2957.1,2956.1,3.382]
[1766529230912,4.31515319,2957.1,2956.1,3.382]
[1766529231209,3.382,2957.4,2956.4,0.93315319]
[1766529231409,3.382,2957.4,2956.5,7.41]
[1766529232314,0.00398532,2957.7,2956.6,0.93315319]
[1766529233099,0.00398532,2957.7,2956.8,0.93315319]
[1766529233304,0.00398532,2957.7,2956.9,3.382]
[1766529233506,0.00398532,2957.7,2957.0,2.857]
[1766529240010,0.00398532,2957.7,2956.2,0.16921]
[1766529240215,0.93315319,2957.5,2956.3,9.287]
[1766529240413,0.93315319,2957.5,2956.3,0.93315319]
[1766529240610,0.00398532,2957.7,2956.4,9.343]
[1766529240808,0.00398532,2957.7,2956.7,0.93315319]
[1766529241010,0.00398532,2957.7,2956.8,3.382]
[1766529241210,0.00398532,2957.7,2956.9,3.282]
[1766529242213,0.00398532,2957.7,2956.2,0.16921]
[1766529242418,0.93315319,2957.4,2956.3,3.482]
[1766529242714,0.93315319,2957.4,2956.4,3.382]
[1766529242910,3.38598532,2957.7,2956.4,3.382]
[1766529242911,0.93315319,2957.6,2956.4,3.382]
[1766529243109,3.38598532,2957.7,2956.5,6.695]
[1766529243310,0.93315319,2957.5,2956.5,6.695]
[1766529244117,3.38598532,2957.7,2956.5,6.695]
[1766529245213,3.38598532,2957.7,2955.9,0.00359916]
[1766529245413,3.38598532,2957.7,2956.0,17.743]
[1766529248513,3.38598532,2957.7,2955.9,0.00359916]
[1766529248514,0.9346194,2957.6,2955.9,0.00359916]
[1766529248709,0.9346194,2957.6,2956.0,9.287]
[1766529249120,40.8,2957.5,2956.0,9.287]
[1766529249519,0.9346194,2957.6,2956.0,9.287]
[1766529250015,41.7346194,2957.6,2955.9,0.00359916]
[1766529250210,41.7346194,2957.6,2956.0,9.287]
[1766529250713,41.7346194,2957.6,2955.9,0.00359916]
[1766529251118,41.7346194,2957.6,2956.0,3.382]
[1766529251306,41.7346194,2957.6,2956.1,5.905]
[1766529251720,41.9037594,2957.6,2956.2,9.288]
[1766529253215,0.16915,2957.5,2955.9,0.00359916]
[1766529253415,3.383,2957.4,2956.0,9.288]
[1766529253924,3.383,2957.4,2955.0,33.83]
[1766529253925,0.9346194,2956.8,2954.4,0.16932]
[1766529254116,0.00507537,2955.9,2954.5,17.91431]
[1766529255123,0.00507537,2955.9,2954.5,17.91842894]
[1766529255315,0.00507537,2955.9,2954.6,17.747]
[1766529255518,0.00507537,2955.9,2954.5,0.17342894]
[1766529255717,0.00507537,2955.9,2954.6,17.749]
[1766529256020,0.00507537,2955.9,2954.7,17.749]
[1766529256212,3.383,2956.7,2954.5,0.17342894]
[1766529256410,3.383,2956.7,2954.8,5.908]
[1766529256629,3.383,2956.7,2954.9,3.383]
[1766529256929,3.383,2956.7,2955.0,9.291]
[1766529257320,3.383,2957.1,2955.6,0.00507537]
[1766529257519,3.383,2957.1,2955.7,9.291]
[1766529257726,3.383,2957.1,2955.8,5.391]
[1766529257923,3.383,2957.1,2955.8,8.774]
[1766529258514,0.00507537,2956.7,2955.8,8.774]
[1766529258818,0.00507537,2956.7,2955.6,0.00507537]
[1766529259117,0.00507537,2956.7,2955.7,9.292]
[1766529259529,0.00507537,2956.7,2955.6,0.00507537]
[1766529259732,0.00507537,2956.7,2955.7,9.291]
[1766529262724,0.00507537,2956.7,2955.6,0.00507537]
[1766529262925,0.00507537,2956.7,2955.7,9.292]
[1766529263632,0.00507537,2956.7,2955.8,9.292]
[1766529264338,0.00507537,2956.7,2955.6,0.00507537]
[1766529264743,0.00507537,2956.7,2955.7,3.416]
[1766529265632,0.9346194,2956.6,2955.6,0.00507537]
[1766529265935,0.9346194,2956.6,2953.7,3.383]
[1766529265936,0.9346194,2956.2,2954.9,3.383]
[1766529266122,3.383,2956.1,2955.0,3.383]
[1766529266839,3.383,2956.1,2955.3,0.00507537]
[1766529267334,3.383,2956.1,2955.3,3.38807537]
[1766529268425,3.383,2956.1,2955.0,3.355]
[1766529268732,3.383,2956.1,2955.1,3.384]
[1766529269347,3.383,2956.1,2953.8,0.16935]
[1766529269536,3.383,2956.1,2954.9,5.909]
[1766529269839,3.383,2956.1,2955.0,3.384]
[1766529271949,3.383,2956.1,2953.9,0.16935]
[1766529272338,3.383,2956.1,2954.6,3.384]
[1766529272538,3.383,2956.1,2954.7,5.91]
[1766529272744,3.383,2956.1,2954.8,9.294]
[1766529273140,3.384,2957.2,2955.2,0.16927]
[1766529273343,3.384,2957.2,2955.3,12.7796194]
[1766529273548,3.384,2957.2,2955.4,5.91]
[1766529274441,3.384,2957.2,2956.0,0.00507537]
[1766529274637,3.384,2957.2,2956.1,9.294]
[1766529275543,0.00507537,2956.9,2956.1,9.294]
[1766529277242,3.38907537,2956.9,2956.0,0.00507537]
[1766529277545,3.38907537,2956.9,2954.4,0.16931]
[1766529277736,3.38907537,2956.9,2954.8,12.386]
[1766529278137,0.9346194,2956.7,2954.9,14.37]
[1766529278344,0.9346194,2956.7,2955.5,0.00507537]
[1766529278646,0.16919,2956.7,2955.6,9.294]
[1766529280052,0.9346194,2956.4,2954.5,0.00411894]
[1766529280238,0.9346194,2956.4,2954.6,3.484]
[1766529280239,3.384,2956.3,2954.6,3.484]
[1766529280443,44.184,2956.3,2954.6,3.484]
[1766529280738,44.184,2956.3,2954.5,0.00411894]
[1766529280947,44.184,2956.3,2954.6,3.384]
[1766529281138,44.184,2956.3,2954.7,5.91]
[1766529281549,44.184,2956.3,2954.5,0.00411894]
[1766529281746,44.184,2956.3,2954.8,3.384]
[1766529282550,0.16922,2956.2,2954.8,3.384]
[1766529283049,0.16922,2956.2,2954.5,0.00411894]
[1766529283358,0.16922,2956.1,2954.6,9.294]
[1766529283544,3.55323,2956.0,2954.6,9.294]
[1766529283844,3.55323,2956.0,2954.7,5.911]
[1766529284050,3.55323,2956.0,2954.8,3.384]
[1766529284239,3.55323,2956.0,2954.5,0.00411894]
[1766529284445,3.55323,2956.0,2954.6,9.295]
[1766529285250,3.55323,2956.0,2954.5,0.00411894]
[1766529285555,0.16923,2955.9,2954.6,3.384]
[1766529285755,0.16923,2955.9,2954.7,3.139]
[1766529286148,6.58223,2955.9,2954.5,0.00411894]
[1766529286447,0.16925,2955.6,2954.5,0.00411894]
[1766529286652,0.00507537,2955.3,2954.6,1.9139]
[1766529286950,0.00507537,2955.3,2954.5,3.38811894]
[1766529287147,0.00507537,2955.3,2953.3,0.9346194]
[1766529287351,0.00507537,2955.3,2953.4,17.756]
[1766529287554,0.00507537,2955.3,2953.1,0.22828855]
[1766529287757,1.10896477,2955.3,2953.2,17.756]
[1766529287947,3.384,2955.2,2953.1,0.16939]
[1766529288348,3.384,2955.2,2953.2,11.942]
[1766529288748,3.384,2955.2,2953.1,0.17236504]
[1766529288950,3.384,2955.2,2953.3,5.911]
[1766529289551,3.384,2955.2,2953.1,0.17236504]
[1766529289758,3.384,2955.2,2953.2,11.941]
[1766529290749,0.00507537,2955.3,2953.2,11.941]
[1766529290955,0.00332287,2955.6,2953.2,11.941]
[1766529291358,3.385,2955.9,2953.9,0.16935]
[1766529291558,3.385,2955.9,2954.0,17.51]
[1766529291755,3.385,2956.4,2954.1,0.16934]
[1766529291964,34.01919,2956.7,2955.0,0.00507537]
[1766529291965,3.55419,2956.7,2955.0,0.00507537]
[1766529292162,3.55419,2956.7,2955.1,9.297]
[1766529292461,0.12259248,2956.6,2955.1,9.297]
[1766529292849,0.00507537,2956.1,2955.1,9.297]
[1766529293555,3.385,2957.2,2955.1,9.297]
[1766529294561,3.38755673,2957.2,2955.1,9.297]
[1766529294863,0.00255673,2957.2,2955.1,43.147]
[1766529295065,0.00255673,2957.2,2955.1,43.31628]
[1766529295862,0.00507537,2956.4,2955.1,43.31628]
[1766529297164,0.00507537,2956.4,2955.2,0.16927]
[1766529297356,0.00507537,2956.4,2955.2,0.17243403]
[1766529297557,0.00255673,2957.2,2955.2,0.17243403]
[1766529298657,0.00507537,2956.5,2955.2,0.17243403]
[1766529299368,0.00255673,2957.2,2955.2,0.17243403]
[1766529299558,0.00255673,2957.2,2955.3,0.16927]
[1766529299755,0.00255673,2957.2,2955.4,3.384]
[1766529300160,0.00255673,2957.2,2955.5,5.914]
[1766529300363,0.00255673,2957.2,2955.6,0.16925]
[1766529300558,0.00255673,2957.2,2955.7,8.872]
[1766529302471,0.00255673,2957.2,2955.8,14.374]
[1766529302768,0.00255673,2957.2,2955.8,17.758]
[1766529303669,0.00255673,2957.2,2955.6,0.16925]
[1766529303867,0.00255673,2957.2,2955.7,11.943]
[1766529304366,0.00255673,2957.2,2955.8,17.76]
[1766529304561,0.00255673,2957.2,2955.9,14.377]
[1766529304767,0.00255673,2957.2,2955.9,17.761]
[1766529307574,0.00255673,2957.2,2956.0,9.3]
[1766529307773,0.00255673,2957.2,2956.1,9.3]
[1766529307966,0.00255673,2957.2,2956.2,5.917]
[1766529308166,0.00255673,2957.2,2956.2,9.3]
[1766529312067,0.00255673,2957.2,2956.2,3.383]
[1766529312272,0.00255673,2957.2,2956.3,8.155]
[1766529313974,0.00255673,2957.2,2955.3,1.44225945]
[1766529314175,0.00255673,2957.2,2955.4,12.614]
[1766529315074,0.00255673,2957.2,2955.3,1.44225945]
[1766529315380,0.00255673,2957.2,2955.5,5.916]
[1766529319972,0.93740502,2957.2,2955.9,0.93484829]
[1766529320173,0.93740502,2957.2,2956.0,9.299]
[1766529324181,0.93484829,2957.0,2956.0,9.299]
[1766529327075,0.93484829,2956.8,2956.1,3.383]
[1766529328288,0.93484829,2957.0,2956.1,3.383]
[1766529329282,0.93484829,2957.0,2956.2,9.299]
[1766529329586,0.93484829,2957.0,2956.3,3.383]
[1766529330790,0.93484829,2957.0,2956.4,3.383]
[1766529336892,0.93484829,2957.0,2955.7,0.93484829]
[1766529337199,0.93484829,2957.0,2955.8,3.881]
[1766529341797,1.10401829,2957.0,2955.8,0.498]
[1766529342099,0.00255673,2957.2,2955.6,3.383]
[1766529342100,0.93484829,2956.3,2955.6,3.383]
[1766529342290,4.31784829,2956.5,2955.7,3.383]
[1766529344702,4.31784829,2956.5,2955.7,3.383]
[1766529345897,4.31784829,2956.5,2955.2,0.00316403]
[1766529345898,0.93484829,2956.3,2955.2,0.00316403]
[1766529346106,0.93484829,2956.1,2955.2,0.00316403]
[1766529346500,0.93484829,2956.1,2955.3,3.384]
[1766529347607,0.93484829,2956.1,2955.2,0.00316403]
[1766529347808,0.93484829,2956.1,2955.3,3.384]
[1766529348309,0.93484829,2956.1,2955.4,3.384]
[1766529350805,0.93484829,2956.1,2955.2,0.00316403]
[1766529351005,0.93484829,2956.1,2955.3,3.384]
[1766529352802,1.10406829,2956.1,2955.2,0.00316403]
[1766529353011,0.93484829,2955.3,2954.1,10.257]
[1766529353209,3.384,2955.2,2954.0,0.93484829]
[1766529353412,3.384,2955.2,2954.2,3.384]
[1766529354018,0.00507537,2955.0,2954.4,0.00507537]
[1766529354220,0.00881043,2955.0,2954.4,0.00507537]
[1766529354816,3.384,2954.9,2954.4,0.00507537]
[1766529355726,3.384,2954.9,2954.2,0.00261474]
[1766529356232,3.384,2954.9,2954.2,3.384]
[1766529356718,3.384,2954.9,2953.9,0.93484829]
[1766529356919,3.384,2954.9,2954.1,0.00507537]
[1766529357325,3.384,2954.9,2954.1,0.00867735]
[1766529359329,4.31884829,2954.9,2954.1,0.00867735]
[1766529360127,3.384,2954.9,2952.8,0.16941]
[1766529360328,0.93484829,2954.2,2952.9,0.93484829]
[1766529360525,5.337,2954.1,2952.9,0.93484829]
[1766529360926,5.337,2954.1,2952.7,0.19863721]
[1766529360927,0.93484829,2954.0,2952.7,0.19863721]
[1766529361123,0.93484829,2954.0,2952.8,4.31984829]
[1766529361426,0.93484829,2954.0,2953.1,0.00507537]
[1766529362126,5.337,2954.1,2953.1,0.00507537]
[1766529362332,0.93484829,2953.9,2953.1,0.00507537]
[1766529362519,3.385,2953.8,2953.1,0.00507537]
[1766529362724,0.93484829,2953.3,2951.2,0.93484829]
[1766529362939,0.93484829,2952.0,2950.4,3.385]
[1766529363140,0.93484829,2952.0,2948.4,4.21723332]
[1766529363141,0.16947,2951.8,2948.4,4.21723332]
[1766529363431,3.385,2951.9,2947.8,0.13943172]
[1766529363432,40.96947,2951.7,2948.8,3.385]
[1766529363631,0.00508414,2950.5,2950.0,0.00508414]
[1766529363824,0.0088712,2950.5,2950.0,0.00930602]
[1766529364030,9.823,2951.0,2950.3,0.93484829]
[1766529364228,0.93484829,2952.6,2950.3,3.385]
[1766529364534,0.93484829,2952.2,2950.9,0.93484829]
[1766529364834,3.385,2952.1,2951.0,3.385]
[1766529365033,0.0042534,2952.1,2951.1,0.93484829]
[1766529365334,9.824,2952.4,2951.0,11.85]
[1766529365530,3.386,2952.7,2951.8,0.93484829]
[1766529365834,3.386,2952.7,2951.2,0.93484829]
[1766529365835,0.93484829,2953.0,2951.9,3.386]
[1766529366025,0.00508414,2952.7,2952.2,0.00508414]
[1766529366331,3.39491721,2952.7,2952.2,0.00776898]
[1766529366730,3.39491721,2952.7,2951.5,5.919]
[1766529366933,3.39491721,2952.7,2951.6,3.386]
[1766529367333,3.39491721,2952.7,2951.7,3.386]
[1766529367530,3.39491721,2952.7,2951.0,5.919]
[1766529367728,3.39491721,2952.7,2951.6,0.00508414]
[1766529370133,3.39491721,2952.7,2951.6,3.39208414]
[1766529370636,0.12080161,2953.3,2951.6,3.39208414]
[1766529370828,3.387,2953.2,2951.6,3.39208414]
[1766529371530,0.00508414,2952.7,2951.6,3.39208414]
[1766529372930,0.00508414,2952.7,2951.6,0.00508414]
[1766529373130,0.00508414,2952.7,2951.7,3.387]
[1766529373331,3.387,2952.6,2951.7,3.387]
[1766529375827,3.39208414,2952.7,2951.7,3.387]
[1766529378243,3.387,2953.1,2951.9,0.16946]
[1766529378438,0.00295667,2953.2,2952.0,3.387]
[1766529378639,3.387,2953.1,2952.0,3.387]
[1766529379256,0.0050783,2952.8,2952.0,3.387]
[1766529379949,0.0050783,2952.8,2951.9,0.16946]
[1766529380240,0.0050783,2952.8,2952.0,9.308]
[1766529380440,0.0050783,2952.8,2951.9,0.16946]
[1766529380642,0.0050783,2952.8,2952.0,3.387]
[1766529380844,0.0050783,2952.8,2951.6,0.00508414]
[1766529381043,0.0050783,2952.8,2951.7,9.308]
[1766529381640,3.3920783,2952.8,2951.7,9.308]
[1766529381946,0.0050783,2952.8,2951.7,9.308]
[1766529382137,3.3920783,2952.8,2951.7,9.308]
[1766529384138,3.387,2953.0,2951.8,0.16947]
[1766529385040,1.9906,2953.0,2951.9,0.16946]
[1766529385246,1.9906,2953.0,2952.0,3.55645]
[1766529385447,1.9906,2953.0,2952.1,9.308]
[1766529386347,1.9906,2953.0,2952.0,0.16945]
[1766529386545,1.9906,2953.0,2952.1,9.308]
[1766529387048,1.9906,2953.0,2952.2,9.308]
[1766529387639,1.9906,2953.0,2952.0,0.16945]
[1766529387948,1.9906,2953.0,2952.1,9.308]
[1766529388246,1.9906,2953.0,2951.8,3.387]
[1766529389444,1.9906,2953.0,2951.6,0.00508414]
[1766529389445,1.9906,2953.0,2951.6,5.86808414]
[1766529389650,1.9906,2953.0,2951.7,3.387]
[1766529390044,1.9906,2953.0,2951.6,0.00508414]
[1766529390245,1.9906,2953.0,2951.7,3.387]
[1766529390642,1.9906,2953.0,2951.8,3.387]
[1766529393239,10.4606,2953.0,2951.6,0.00508414]
[1766529393443,0.96538492,2952.9,2951.6,0.00508414]
[1766529393650,0.96538492,2952.9,2951.7,3.388]
[1766529394052,0.96538492,2952.9,2951.8,4.114]
[1766529395347,1.9906,2953.0,2951.6,0.00508414]
[1766529395649,0.96687114,2952.9,2951.7,9.309]
[1766529398553,0.96687114,2952.9,2951.8,9.309]
[1766529398946,0.32807114,2952.9,2951.8,9.47847]
[1766529399147,1.9906,2953.0,2951.8,9.47847]
[1766529400550,1.9906,2953.0,2951.9,0.16946]
[1766529401655,3.39095667,2953.2,2952.0,9.309]
[1766529404752,0.00295667,2953.2,2952.0,9.309]
[1766529404951,3.39095667,2953.2,2952.0,9.309]
[1766529407065,3.39095667,2953.2,2951.9,0.16946]
[1766529407264,3.39095667,2953.2,2952.1,5.921]
[1766529407862,0.00295667,2953.2,2952.1,5.921]
[1766529409265,3.387,2953.9,2952.5,0.16942]
[1766529409462,3.387,2953.9,2952.9,0.00508414]
[1766529409762,14.897,2954.3,2952.9,0.00508414]
[1766529409763,6.428,2954.3,2953.0,3.387]
[1766529410065,3.387,2954.4,2953.1,1.83]
[1766529410261,3.387,2954.3,2953.1,1.83431722]
[1766529412159,0.00417966,2954.4,2953.1,1.83431722]
[1766529412356,3.387,2954.3,2953.1,0.00431722]
[1766529412551,3.387,2954.3,2953.2,3.387]
[1766529420557,0.00417966,2954.4,2953.2,3.387]
[1766529420763,0.00417966,2954.4,2953.2,3.55639]
[1766529421371,0.00417966,2954.4,2953.3,0.16938]
[1766529422974,3.39117966,2954.4,2953.4,3.387]
[1766529424076,3.39117966,2954.4,2953.3,0.16938]
[1766529424277,3.39117966,2954.4,2953.4,3.555]
[1766529425175,3.39117966,2954.4,2953.3,0.16938]
[1766529425373,3.39117966,2954.4,2953.4,3.386]
[1766529425776,0.00417966,2954.4,2953.4,3.386]
[1766529426373,0.00417966,2954.4,2953.5,9.304]
[1766529426787,3.39017966,2954.4,2953.1,0.00431722]
[1766529426965,3.386,2955.3,2953.8,0.16935]
[1766529427170,3.386,2955.3,2953.9,3.386]
[1766529427777,3.386,2955.3,2953.9,3.55534]
[1766529427968,3.38869436,2955.3,2953.9,9.304]
[1766529428279,3.38869436,2955.3,2953.7,5.918]
[1766529428478,3.38869436,2955.3,2953.8,3.386]
[1766529429371,3.38869436,2955.3,2953.1,0.00431722]
[1766529429575,3.38869436,2955.3,2953.2,9.304]
[1766529429778,40.8,2955.2,2953.2,9.304]
[1766529430179,3.38869436,2955.3,2953.3,1.44393809]
[1766529430566,3.38869436,2955.3,2953.7,1.44393809]
[1766529430877,3.38869436,2955.3,2953.8,17.77]
[1766529431585,3.38869436,2955.3,2953.8,17.93935]
[1766529433087,3.38869436,2955.3,2953.9,0.16935]
[1766529433986,3.38869436,2955.3,2954.1,1.44393809]
[1766529434172,3.38869436,2955.3,2954.4,0.00508414]
[1766529434370,0.00269436,2955.3,2954.5,9.308]
[1766529438983,0.16918,2956.8,2954.5,10.75193809]
[1766529439288,2.40456444,2958.2,2954.5,10.75193809]
[1766529439289,3.385,2956.5,2954.9,1.44393809]
[1766529439585,3.385,2956.5,2955.0,9.307]
[1766529439781,3.38837782,2956.5,2955.0,9.307]
[1766529440187,0.00337782,2956.5,2955.0,9.307]
[1766529440383,3.38837782,2956.5,2954.8,1.61322809]
[1766529440689,3.38837782,2956.5,2955.1,5.921]
[1766529441073,9.80737782,2956.5,2955.1,5.921]
[1766529441990,9.80737782,2956.5,2955.2,3.385]
[1766529442192,9.80737782,2956.5,2955.2,3.38875868]
[1766529443277,9.80737782,2956.5,2955.3,8.269]
[1766529444383,9.80737782,2956.5,2955.2,0.00375868]
[1766529444583,9.80737782,2956.5,2955.3,9.306]
[1766529445082,9.80737782,2956.5,2955.2,0.00375868]
[1766529445284,1.44393809,2956.2,2954.2,0.16933]
[1766529445482,11.848,2956.1,2954.5,3.385]
[1766529445682,3.385,2956.0,2954.5,3.385]
[1766529445887,6.419,2955.9,2954.5,3.385]
[1766529446090,6.419,2955.9,2954.2,0.16933]
[1766529446290,6.419,2955.9,2954.5,7.663]
[1766529446585,6.419,2955.9,2954.6,0.1693]
[1766529446985,6.419,2955.9,2954.5,7.663]
[1766529447185,3.385,2956.0,2954.5,7.663]
[1766529448393,3.385,2956.0,2954.8,0.1693]
[1766529448698,3.385,2956.0,2954.9,3.385]
[1766529448990,3.385,2956.0,2955.0,3.828]
[1766529450587,3.385,2956.0,2955.0,14.72346766]
[1766529450783,9.314,2956.3,2955.0,14.72346766]
[1766529450985,9.314,2956.3,2955.0,14.89274766]
[1766529451993,9.314,2956.3,2955.2,1.44393809]
[1766529452193,3.384,2956.3,2955.3,3.384]
[1766529452492,0.00337782,2956.5,2955.3,3.384]
[1766529452792,0.00337782,2956.5,2955.6,1.44393809]
[1766529452993,0.00337782,2956.5,2955.7,9.304]
[1766529453492,3.384,2956.9,2955.7,9.304]
[1766529453791,3.384,2956.9,2956.0,0.00507546]
[1766529453991,3.384,2956.9,2956.1,3.384]
[1766529454485,3.38691329,2956.9,2956.1,3.384]
[1766529455589,3.38691329,2956.9,2956.0,4.83307546]
[1766529455793,3.38691329,2956.9,2956.2,3.384]
[1766529457086,3.38691329,2956.9,2956.0,5.92407546]
[1766529457283,3.38691329,2956.9,2956.1,3.384]
[1766529459695,3.38691329,2956.9,2956.0,0.00507546]
[1766529459897,3.38691329,2956.9,2956.1,3.384]
[1766529461999,3.38691329,2956.9,2956.0,0.00507546]
[1766529462201,3.38691329,2956.9,2956.1,5.81746766]
[1766529465206,3.38691329,2956.9,2956.1,2.43346766]
[1766529472203,3.38691329,2956.9,2954.3,0.16932]
[1766529472204,0.16921,2956.4,2954.3,0.16932]
[1766529472406,0.93472876,2955.7,2954.3,0.93472876]
[1766529472708,0.93472876,2955.5,2954.4,3.38553544]
[1766529472909,3.383,2955.4,2954.4,3.38553544]
[1766529473202,0.00504649,2955.2,2954.6,0.00507546]
[1766529476213,0.00504649,2955.2,2954.6,3.38907546]
[1766529476409,3.384,2955.1,2953.9,3.384]
[1766529476613,6.754,2955.1,2953.9,3.384]
[1766529477512,6.754,2955.1,2954.2,0.00507546]
[1766529479210,3.384,2955.9,2954.5,1.44400694]
[1766529479417,3.384,2955.9,2954.6,3.384]
[1766529480307,0.00507546,2955.5,2954.6,3.384]
[1766529481110,0.00507546,2955.5,2954.3,0.16932]
[1766529481313,3.384,2956.7,2954.8,0.16929]
[1766529481511,3.384,2956.7,2954.2,1.4490824]
[1766529481818,1.61319694,2956.6,2954.3,12.29332]
[1766529482017,0.649,2956.5,2954.3,12.29332]
[1766529482214,3.384,2956.4,2954.3,12.29332]
[1766529482606,3.384,2956.4,2954.3,0.16932]
[1766529482811,3.384,2956.4,2954.4,12.812]
[1766529483413,3.384,2956.4,2954.3,0.16932]
[1766529483414,3.384,2956.4,2954.5,5.919]
[1766529483628,3.384,2956.4,2954.6,3.384]
[1766529484316,11.846,2956.4,2954.7,3.384]
[1766529484618,11.846,2956.4,2954.8,3.384]
[1766529487017,3.384,2957.0,2955.0,1.44400694]
[1766529487224,3.384,2957.0,2955.1,5.392]
[1766529488226,3.384,2957.0,2955.0,1.44400694]
[1766529488427,0.00507546,2956.2,2955.7,0.00507546]
[1766529488626,0.00507546,2956.2,2955.7,3.38907546]
[1766529488821,0.00507546,2956.2,2954.9,0.16929]
[1766529489023,0.00507546,2956.2,2955.0,3.773]
[1766529489229,0.00507546,2956.2,2955.1,3.384]
[1766529490030,0.00507546,2956.2,2955.4,0.00507546]
[1766529490231,0.00507546,2956.2,2955.5,3.384]
[1766529491032,3.384,2956.5,2955.6,5.205]
[1766529491528,3.384,2956.5,2955.4,0.00507546]
[1766529491730,3.384,2956.5,2955.5,3.384]
[1766529492234,0.00507546,2956.3,2955.5,3.384]
[1766529492832,0.00291329,2956.9,2955.5,11.845]
[1766529496338,0.00291329,2956.9,2955.5,3.384]
[1766529496532,0.00291329,2956.9,2954.2,0.16933]
[1766529496933,0.00291329,2956.9,2954.3,3.925]
[1766529497128,0.00291329,2956.9,2954.4,5.918]
[1766529497337,0.00291329,2956.9,2954.5,3.384]
[1766529497534,0.00507546,2956.0,2955.4,0.00507546]
[1766529497939,3.55321,2956.3,2955.4,3.38907546]
[1766529498131,40.8,2956.2,2955.4,3.38907546]
[1766529498443,3.55321,2956.3,2955.4,3.38907546]
[1766529498935,3.55321,2956.3,2955.4,0.00507546]
[1766529499144,3.55321,2956.3,2955.4,3.38907546]
[1766529500030,3.55321,2956.3,2955.4,0.00507546]
[1766529500235,3.55321,2956.3,2955.4,3.38907546]
[1766529502433,3.55321,2956.3,2954.3,0.16932]
[1766529502840,0.16922,2956.2,2954.4,3.485]
[1766529503341,3.384,2956.3,2954.5,0.16931]
[1766529503532,0.00507546,2955.7,2955.1,0.00507546]
[1766529503733,0.00507546,2955.7,2955.2,3.384]
[1766529505044,0.00507546,2955.7,2953.8,0.16935]
[1766529505341,3.384,2955.6,2954.0,3.486]
[1766529505827,3.384,2955.6,2953.8,0.16935]
[1766529506029,3.384,2955.6,2954.0,3.486]
[1766529506231,3.384,2955.6,2954.5,0.00507546]
[1766529507242,0.16926,2955.5,2954.3,3.384]
[1766529507443,6.413,2955.4,2953.9,0.00323496]
[1766529507641,3.384,2955.3,2953.9,0.00323496]
[1766529507840,3.384,2955.3,2954.0,3.384]
[1766529508039,3.384,2955.3,2953.9,0.00323496]
[1766529508343,3.384,2955.3,2954.3,0.00507546]
[1766529508834,3.384,2955.3,2954.3,3.38907546]
[1766529512643,3.384,2955.3,2954.3,0.00507546]
[1766529512945,3.384,2955.3,2954.2,3.385]
[1766529513743,40.8,2955.2,2954.5,0.00507546]
[1766529514041,40.8,2955.2,2954.1,3.385]
[1766529514440,3.384,2955.3,2954.1,3.385]
[1766529514943,3.384,2955.3,2954.4,0.00507546]
[1766529515536,3.384,2955.3,2954.4,3.39007546]
[1766529516541,3.384,2955.3,2954.4,7.11007546]
[1766529516743,3.385,2955.6,2954.4,7.11007546]
[1766529517245,0.00507546,2955.7,2954.5,0.16931]
[1766529517435,3.385,2956.2,2954.5,0.16931]
[1766529518447,0.00507546,2955.6,2954.6,0.1693]
[1766529518744,0.00507546,2955.6,2954.7,3.385]
[1766529519344,6.415,2956.4,2954.7,3.385]
[1766529519642,3.385,2956.5,2955.0,0.16928]
[1766529519947,3.385,2957.4,2955.7,0.16924]
[1766529520139,3.385,2957.4,2954.0,35.48935821]
[1766529520140,3.385,2957.0,2954.9,0.16929]
[1766529520336,0.00507546,2956.2,2955.6,0.00507546]